fUST/lending_fUST_20251209
["ID","MTS","AMOUNT","RATE_DAILY","PERIOD"]
[398013830,1765287032834,-300.0,7.934e-05,2]
[398013831,1765287032843,-1680.0,7.978e-05,2]
[398013832,1765287032852,-413.67,8.059e-05,2]
[398013833,1765287032862,-977.86880464,8.114e-05,2]
[398013834,1765287032872,-500.0,8.219e-05,2]
[398013835,1765287032881,-500.0,8.219e-05,2]
[398013836,1765287032890,-500.0,8.219e-05,2]
[398013837,1765287032900,-500.0,8.219e-05,2]
[398013838,1765287032909,-500.0,8.219e-05,2]
[398013839,1765287032918,-500.0,8.219e-05,2]
[398013840,1765287032928,-500.0,8.219e-05,2]
[398013841,1765287032938,-500.0,8.219e-05,2]
[398013842,1765287032947,-500.0,8.219e-05,2]
[398013843,1765287032956,-500.0,8.219e-05,2]
[398013844,1765287032976,-500.0,8.219e-05,2]
[398013845,1765287032989,-500.0,8.219e-05,2]
[398013846,1765287032999,-500.0,8.219e-05,2]
[398013847,1765287033008,-500.0,8.219e-05,2]
[398013848,1765287033017,-500.0,8.219e-05,2]
[398013849,1765287033026,-500.0,8.219e-05,2]
[398013850,1765287033035,-500.0,8.219e-05,2]
[398013851,1765287033044,-502.29318448,8.219e-05,2]
[398013852,1765287033054,-500.0,8.219e-05,2]
[398013853,1765287033063,-420.0,8.337e-05,2]
[398013854,1765287033072,-300.0,8.337e-05,2]
[398013855,1765287033081,-977.86880464,8.46e-05,2]
[398013856,1765287033091,-500.0,8.493e-05,2]
[398013857,1765287033102,-500.0,8.519e-05,2]
[398013858,1765287033111,-2156.0,8.599e-05,2]
[398013859,1765287033120,-415.0,8.599e-05,2]
[398013860,1765287033129,-245.33215599,8.644e-05,2]
[398013861,1765287033138,-551.56,8.679e-05,2]
[398013862,1765287033147,-352.77159548,8.7e-05,2]
[398013863,1765287033156,-22.75300019,8.719e-05,2]
[398013903,1765287038310,-5000.0,7.503e-05,2]
[398013905,1765287038320,-500.0,7.579e-05,2]
[398013907,1765287038329,-268.01354489,7.579e-05,2]
[398013914,1765287038421,-131.2367902,7.579e-05,2]
[398013916,1765287038430,-500.0,7.579e-05,2]
[398013917,1765287038440,-500.0,7.579e-05,2]
[398013919,1765287038449,-500.0,7.579e-05,2]
[398013921,1765287038458,-500.0,7.579e-05,2]
[398013923,1765287038468,-276.96963024,7.579e-05,2]
[398013925,1765287038477,-500.0,7.579e-05,2]
[398013927,1765287038487,-500.0,7.579e-05,2]
[398013929,1765287038496,-515.88686084,7.579e-05,2]
[398013931,1765287038506,-227.24699981,8.719e-05,2]
[398013933,1765287038515,-500.0,8.767e-05,2]
[398013935,1765287038524,-1385.0,8.775e-05,2]
[398013936,1765287038534,-977.86880464,8.807e-05,2]
[398013937,1765287038543,-500.0,9.041e-05,2]
[398013938,1765287038552,-245.33215595,9.143e-05,2]
[398013939,1765287038562,-977.86880464,9.154e-05,2]
[398013940,1765287038571,-587.0,9.171e-05,2]
[398013941,1765287038581,-689.45,9.299e-05,2]
[398013942,1765287038591,-500.0,9.315e-05,2]
[398013943,1765287038601,-174.68536462,9.376e-05,2]
[398013944,1765287038611,-977.86880464,9.501e-05,2]
[398013945,1765287038620,-500.0,9.589e-05,2]
[398013946,1765287038629,-245.33215595,9.643e-05,2]
[398013947,1765287038639,-978.84667345,9.847e-05,2]
[398013948,1765287038649,-500.0,9.863e-05,2]
[398013949,1765287038658,-827.34,9.919e-05,2]
[398013950,1765287038667,-2541.64500702,0.0001,2]
[398014087,1765287042099,-744.43804144,0.0001,2]
[398014088,1765287042111,-915.52853572,0.0001,2]
[398014106,1765287043316,-5798.38841582,0.0001,2]
[398014107,1765287043326,-288.30841459,0.0001,2]
[398014108,1765287043335,-1000.0,0.0001,2]
[398014109,1765287043344,-15026.5677832,0.0001,2]
[398014110,1765287043353,-2911.41915465,0.0001,2]
[398014111,1765287043363,-151.0,0.0001,2]
[398014112,1765287043372,-151.0,0.0001,2]
[398014113,1765287043381,-151.0,0.0001,2]
[398014114,1765287043390,-314.04,0.0001,2]
[398014115,1765287043400,-151.0,0.0001,2]
[398014116,1765287043409,-151.0,0.0001,2]
[398014117,1765287043418,-151.0,0.0001,2]
[398014118,1765287043428,-151.0,0.0001,2]
[398014119,1765287043437,-151.0,0.0001,2]
[398014120,1765287043446,-151.0,0.0001,2]
[398014121,1765287043456,-268.1433889,0.0001,2]
[398014122,1765287043465,-214.4230543,0.00010042,2]
[398014123,1765287043477,-30.90910165,0.00010042,2]
[398014124,1765287043487,-823.0,0.00010088,2]
[398014125,1765287043496,-314.04,0.000101,2]
[398014126,1765287043505,-500.0,0.00010137,2]
[398014127,1765287043514,-314.04,0.000102,2]
[398014128,1765287043523,-314.04,0.000102,2]
[398014129,1765287043533,-250.0,0.000103,2]
[398014130,1765287043542,-314.04,0.000103,2]
[398014131,1765287043551,-314.04,0.000104,2]
[398014132,1765287043561,-500.0,0.00010411,2]
[398014133,1765287043570,-314.04,0.000105,2]
[398014134,1765287043579,-3710.53703094,0.00010535,2]
[398014135,1765287043591,-508.54553003,0.00010535,2]
[398014136,1765287043619,-600.0,0.00010199,2]
[398014137,1765287043629,-7137.35533875,0.00010535,2]
[398014146,1765287046318,-709.6301631,9.9e-05,2]
[398014147,1765287245688,161.379734,3.292e-05,2]
[398014150,1765287256169,4838.650266,6.523e-05,2]
[398014151,1765287256190,161.349734,6.523e-05,2]
[398014152,1765287279038,5000.0,6.523e-05,2]
[398014153,1765287301403,4838.660266,6.523e-05,2]
[398014154,1765287301425,161.339734,6.523e-05,2]
[398014155,1765287323431,5000.0,6.523e-05,2]
[398014156,1765287347416,4838.670266,6.523e-05,2]
[398014157,1765287347442,161.329734,6.523e-05,2]
[398014158,1765287370125,5000.0,6.523e-05,2]
[398014159,1765287395999,4838.680266,6.523e-05,2]
[398014160,1765287396022,161.319734,6.523e-05,2]
[398014161,1765287425646,5000.0,6.523e-05,2]
[398014162,1765287435758,4838.690266,6.523e-05,2]
[398014163,1765287435780,161.309734,6.523e-05,2]
[398014164,1765287452519,5000.0,6.523e-05,2]
[398014165,1765287460721,4838.700266,6.523e-05,2]
[398014166,1765287460747,161.299734,6.523e-05,2]
[398014167,1765287476761,5000.0,6.523e-05,2]
[398014168,1765287485986,4838.710266,6.523e-05,2]
[398014169,1765287486008,161.289734,6.523e-05,2]
[398014170,1765287501612,587.04891495,6.523e-05,2]
[398014171,1765287510240,5000.0,6.523e-05,2]
[398014172,1765287533366,4251.67135105,6.523e-05,2]
[398014173,1765287536812,-748.32864895,6.523e-05,2]
[398014174,1765287556354,3045.1119793,6.523e-05,2]
[398014175,1765287954108,-161.379734,6.584e-05,2]
[398014176,1765287954129,-285.92436772,6.584e-05,2]
[398014177,1765287954149,-514.0,6.584e-05,2]
[398014178,1765287954174,-150.0,6.886e-05,2]
[398014179,1765287954197,-65.85852841,7.512e-05,2]
[398014208,1765288232390,-300.0,6.618e-05,2]
[398014209,1765288232400,-212.35140376,6.618e-05,2]
[398014225,1765288238497,-987.64859624,6.618e-05,2]
[398014226,1765288238506,-286.13977319,6.619e-05,2]
[398014227,1765288238516,-2433.62154362,6.619e-05,2]
[398014276,1765288240685,-2365.7872623,6.619e-05,2]
[398014335,1765288243600,-9617.45419058,6.619e-05,2]
[398014336,1765288243609,-150.0,6.887e-05,2]
[398014337,1765288243619,-420.0,7.28e-05,2]
[398014338,1765288243628,-347.30356795,7.472e-05,2]
[398014339,1765288243637,-500.0,7.479e-05,2]
[398014340,1765288243647,-363.51681234,7.479e-05,2]
[398014341,1765288243656,-500.0,7.479e-05,2]
[398014342,1765288243665,-273.21890717,7.479e-05,2]
[398014343,1765288243674,-500.0,7.479e-05,2]
[398014344,1765288243684,-500.0,7.479e-05,2]
[398014345,1765288243694,-500.0,7.479e-05,2]
[398014346,1765288243703,-500.0,7.479e-05,2]
[398014347,1765288243712,-252.05247253,7.479e-05,2]
[398014348,1765288243724,-170.42775958,7.479e-05,2]
[398014349,1765288243734,-500.0,7.479e-05,2]
[398014350,1765288243743,-500.0,7.479e-05,2]
[398014351,1765288243752,-500.0,7.479e-05,2]
[398014352,1765288243761,-500.0,7.479e-05,2]
[398014353,1765288243771,-500.0,7.479e-05,2]
[398014354,1765288243781,-500.0,7.479e-05,2]
[398014355,1765288243790,-250.0,7.479e-05,2]
[398014356,1765288243799,-61338.67067856,7.48e-05,2]
[398014357,1765288243809,-217.96,7.513e-05,2]
[398014358,1765288243818,-600.0,7.73e-05,2]
[398014359,1765288243828,-223.60243821,7.73e-05,2]
[398014360,1765288243837,-587.0,8.008e-05,2]
[398014361,1765288243847,-326.94,8.139e-05,2]
[398014362,1765288243856,-223.60243818,8.438e-05,2]
[398014363,1765288243865,-720.0,8.503e-05,2]
[398014364,1765288243874,-337.64493236,8.619e-05,2]
[398014365,1765288243884,-435.92,8.765e-05,2]
[398014366,1765288243893,-854.969,8.829e-05,2]
[398014367,1765288243903,-2156.0,8.945e-05,2]
[398014368,1765288243912,-1360.0,8.945e-05,2]
[398014369,1765288243922,-223.60243818,9.146e-05,2]
[398014370,1765288243932,-864.0,9.353e-05,2]
[398014371,1765288243941,-544.9,9.391e-05,2]
[398014372,1765288243950,-223.60243818,9.854e-05,2]
[398014373,1765288243959,-156.1604572,9.983e-05,2]
[398014374,1765288243969,-500.0,9.999e-05,2]
[398014375,1765288243979,-201.60522914,9.999e-05,2]
[398014376,1765288243989,-10000.0,0.0001,2]
[398014377,1765288243999,-270.07,0.0001,2]
[398014378,1765288244008,-507.5214859,0.00010009,2]
[398014379,1765288244017,-3235.2632966,0.00010009,2]
[398014380,1765288244027,-653.88,0.00010017,2]
[398014381,1765288244036,-500.0,0.00010034,2]
[398014382,1765288244045,-5557.4038171,0.00010034,2]
[398014383,1765288244054,-7855.9782019,0.00010034,2]
[398014384,1765288244064,-6223.3181828,0.00010034,2]
[398014385,1765288244073,-270.07,0.000101,2]
[398014386,1765288244083,-270.07,0.000102,2]
[398014387,1765288244092,-270.07,0.000102,2]
[398014388,1765288244101,-1000.0,0.00010288,2]
[398014389,1765288244111,-270.07,0.000103,2]
[398014390,1765288244120,-500.0,0.00010308,2]
[398014391,1765288244129,-270.07,0.000104,2]
[398014392,1765288244139,-223.60243818,0.00010462,2]
[398014393,1765288244148,-158.0,0.000105,2]
[398014394,1765288244157,-158.0,0.000105,2]
[398014395,1765288244167,-270.07,0.000105,2]
[398014396,1765288244176,-250.0,0.00010534,2]
[398014397,1765288244186,-26643.56210028,0.00010535,2]
[398014398,1765288244195,-151.935492,0.00010544,2]
[398014399,1765288244205,-634.592501,0.00010544,2]
[398014400,1765288244214,-634.592501,0.00010544,2]
[398014401,1765288244223,-634.592501,0.00010544,2]
[398014402,1765288244233,-634.592501,0.00010544,2]
[398014403,1765288244243,-151.0,0.00010544,2]
[398014404,1765288244252,-38000.0,0.00010544,2]
[398014405,1765288244261,-38000.0,0.00010553,2]
[398014406,1765288244271,-38000.0,0.00010562,2]
[398014407,1765288244280,-634.592501,0.00010562,2]
[398014408,1765288244289,-634.592501,0.00010562,2]
[398014409,1765288244298,-634.592501,0.00010562,2]
[398014410,1765288244307,-634.592501,0.00010562,2]
[398014411,1765288244316,-213.643141,0.00010562,2]
[398014412,1765288244325,-38000.0,0.00010571,2]
[398014413,1765288244334,-634.592501,0.00010579,2]
[398014414,1765288244343,-634.592501,0.00010579,2]
[398014415,1765288244352,-634.592501,0.00010579,2]
[398014416,1765288244361,-634.592501,0.00010579,2]
[398014417,1765288244371,-38000.0,0.00010579,2]
[398014418,1765288244380,-500.0,0.00010582,2]
[398014419,1765288244389,-38000.0,0.00010588,2]
[398014420,1765288244399,-38000.0,0.00010597,2]
[398014421,1765288244408,-634.592501,0.00010597,2]
[398014422,1765288244417,-634.592501,0.00010597,2]
[398014423,1765288244426,-634.592501,0.00010597,2]
[398014424,1765288244436,-634.592501,0.00010597,2]
[398014425,1765288244445,-270.07,0.000106,2]
[398014426,1765288244455,-38000.0,0.00010606,2]
[398014427,1765288244466,-38000.0,0.00010615,2]
[398014428,1765288244476,-634.592501,0.00010615,2]
[398014429,1765288244485,-634.592501,0.00010615,2]
[398014430,1765288244495,-634.592501,0.00010615,2]
[398014431,1765288244504,-634.592506,0.00010615,2]
[398014432,1765288244514,-423.29898615,0.00010618,2]
[398014433,1765288244523,-389.15009154,0.00010619,2]
[398014434,1765288244532,-38000.0,0.00010623,2]
[398014435,1765288244542,-38000.0,0.00010632,2]
[398014436,1765288244551,-25326.38641962,0.00010641,2]
[398014441,1765288246451,-9026.58286333,0.00010641,2]
[398014442,1765288246758,-1069.96,0.00010641,2]
[398014445,1765288736393,189.9767698,6.488e-05,2]
[398014447,1765288986860,150.0,0.00013016,30]
[398014448,1765289066093,150.0,0.00013124,30]
[398014478,1765289432561,-633.68639986,6.899e-05,2]
[398014479,1765289432571,-277.24064834,6.899e-05,2]
[398014480,1765289432581,-1289.0729518,6.899e-05,2]
[398014481,1765289432592,-217.6275834,6.899e-05,2]
[398014482,1765289432602,-271.3724166,6.899e-05,2]
[398014571,1765289438746,-228.6275834,6.899e-05,2]
[398014573,1765289438756,-262.09132678,6.899e-05,2]
[398014575,1765289438766,-9.28149677,7.121e-05,2]
[398014612,1765289440978,-290.71850323,7.121e-05,2]
[398014613,1765289440988,-323.31197626,7.122e-05,2]
[398014614,1765289441037,-875.68802374,7.122e-05,2]
[398014615,1765289441046,-1733.74162272,7.123e-05,2]
[398014625,1765289443751,-152.00408428,7.123e-05,2]
[398014626,1765289443761,-150.0,7.226e-05,2]
[398014627,1765289443770,-347.30356795,7.315e-05,2]
[398014628,1765289443779,-151.02,7.883e-05,2]
[398014629,1765289443790,-112.06835985,8.219e-05,2]
[398014630,1765289443873,-387.93164015,8.219e-05,2]
[398014631,1765289443883,-500.0,8.219e-05,2]
[398014632,1765289443892,-500.0,8.219e-05,2]
[398014633,1765289443902,-226.54,8.54e-05,2]
[398014634,1765289443912,-239.81139012,8.572e-05,2]
[398014635,1765289443922,-8273.34291609,8.899e-05,2]
[398014636,1765289443939,-371.748,8.899e-05,2]
[398014641,1765289446646,-9973.79465866,8.899e-05,2]
[398014642,1765289446761,-999.48,8.899e-05,2]
[398014643,1765289758499,150.0,0.00012689,30]
[398014644,1765289758894,150.0,0.00013842,30]
[398014646,1765289837066,150.0,0.00013511,30]
[398014647,1765289914808,150.0,0.00013271,30]
[398014648,1765290142867,150.0,0.00013775,30]
[398014649,1765290218765,150.0,0.00013729,30]
[398014650,1765290294749,150.0,0.00013504,30]
[398014651,1765290348136,-1406.86295921,7.041e-05,2]
[398014652,1765290372494,150.0,0.00012798,30]
[398014653,1765290372918,150.0,0.00013961,30]
[398014655,1765290434300,-1308.17646241,6.971e-05,2]
[398014657,1765290436099,-333.83818965,6.971e-05,2]
[398014658,1765290449126,-161.30995212,6.971e-05,2]
[398014659,1765290449359,5268.263953,6.399e-05,2]
[398014660,1765290449381,4433.3352878,6.399e-05,2]
[398014661,1765290450720,150.0,0.00011369,30]
[398014662,1765290451115,150.0,0.00012403,30]
[398014663,1765290451524,150.0,0.00013436,30]
[398014665,1765290595810,5566.6747122,6.37e-05,2]
[398014666,1765290595832,3348.9544853,6.37e-05,2]
[398014711,1765290631868,-150.0,6.863e-05,2]
[398014713,1765290631878,-282.9066682,7.077e-05,2]
[398014714,1765290631888,-160.388,7.232e-05,2]
[398014716,1765290631897,-347.30356795,7.353e-05,2]
[398014718,1765290631906,-300.0,7.373e-05,2]
[398014720,1765290631915,-300.0,7.373e-05,2]
[398014722,1765290631924,-300.0,7.373e-05,2]
[398014724,1765290631933,-300.0,7.373e-05,2]
[398014726,1765290631942,-371.0,7.373e-05,2]
[398014727,1765290631952,-23562.97472703,7.374e-05,2]
[398014728,1765290631964,-373.11910904,7.374e-05,2]
[398014734,1765290637758,-281.04,7.373e-05,2]
[398014736,1765290637772,-218.96,7.373e-05,2]
[398014737,1765290637781,-500.0,7.373e-05,2]
[398014738,1765290637790,-5251.9618723,7.374e-05,2]
[398014739,1765290637799,-1200.0,7.374e-05,2]
[398014740,1765290637808,-196.313032,7.432e-05,2]
[398014741,1765290637817,-150.0,7.487e-05,2]
[398014742,1765290637827,-156.13950389,7.907e-05,2]
[398014743,1765290637836,-203.9779228,7.913e-05,2]
[398014744,1765290637845,-150.0,8.111e-05,2]
[398014745,1765290637854,-239.31669018,8.219e-05,2]
[398014746,1765290637864,-191.19,8.735e-05,2]
[398014747,1765290637878,-300.31348173,8.8e-05,2]
[398014748,1765290637887,-328.34117172,8.87e-05,2]
[398014749,1765290637905,-171.65882828,8.87e-05,2]
[398014750,1765290637914,-250.0,8.898e-05,2]
[398014751,1765290637923,-280.33131727,9e-05,2]
[398014767,1765290640104,-219.66868273,9e-05,2]
[398014769,1765290640114,-1409.39369492,9e-05,2]
[398014770,1765290640218,-532.5,9e-05,2]
[398014771,1765290640229,-323.13658506,9e-05,2]
[398014772,1765290640240,-250.96972002,9e-05,2]
[398014773,1765290640249,-151.0,9e-05,2]
[398014774,1765290640259,-333.82986848,9.077e-05,2]
[398014775,1765290640268,-570.542,9.133e-05,2]
[398014776,1765290640277,-187.488,9.133e-05,2]
[398014777,1765290640286,-415.0,9.133e-05,2]
[398014778,1765290640296,-198.0,9.137e-05,2]
[398014779,1765290640305,-397.3824516,9.159e-05,2]
[398014780,1765290640315,-715.28841287,9.159e-05,2]
[398014781,1765290640324,-1271.62384511,9.159e-05,2]
[398014782,1765290640334,-1986.91225798,9.159e-05,2]
[398014783,1765290640343,-2858.29249784,9.159e-05,2]
[398014784,1765290640352,-500.0,9.274e-05,2]
[398014785,1765290640361,-500.0,9.3e-05,2]
[398014786,1765290640371,-238.99,9.359e-05,2]
[398014787,1765290640382,-500.0,9.548e-05,2]
[398014788,1765290640392,-373.80328432,9.641e-05,2]
[398014789,1765290640402,-427.20375351,9.641e-05,2]
[398014791,1765290640411,-666.838359,9.641e-05,2]
[398014793,1765290640420,-1000.0,9.78e-05,2]
[398014795,1765290640429,-500.0,9.822e-05,2]
[398014797,1765290640439,-504.57232937,9.9e-05,2]
[398014799,1765290640449,-286.79,9.982e-05,2]
[398014800,1765290640458,-10000.0,0.0001,2]
[398014801,1765290640468,-374.03,0.0001,2]
[398014802,1765290640478,-520.89482337,0.00010074,2]
[398014803,1765290640488,-644.13242314,0.00010074,2]
[398014804,1765290640498,-533.88981491,0.00010074,2]
[398014805,1765290640509,-2579.17784983,0.00010074,2]
[398014806,1765290640519,-500.0,0.00010096,2]
[398014807,1765290640528,-374.03,0.000101,2]
[398014808,1765290640538,-600.0,0.00010198,2]
[398014809,1765290640548,-374.03,0.000102,2]
[398014810,1765290640558,-374.03,0.000102,2]
[398014811,1765290640568,-151.0,0.000103,2]
[398014812,1765290640579,-374.03,0.000103,2]
[398014813,1765290640588,-500.0,0.0001037,2]
[398014814,1765290640597,-374.03,0.000104,2]
[398014815,1765290640607,-156.1604573,0.00010421,2]
[398014816,1765290640615,-330.1679659,0.00010421,2]
[398014817,1765290640625,-857.6009683,0.00010421,2]
[398014818,1765290640634,-578.9831962,0.00010428,2]
[398014819,1765290640644,-151.0,0.00010437,2]
[398014820,1765290640653,-374.03,0.000105,2]
[398014821,1765290640662,-500.0,0.00010503,2]
[398014822,1765290640672,-500.0,0.00010503,2]
[398014823,1765290640681,-198.0,0.00010574,2]
[398014824,1765290640691,-1516.7112475,0.00010588,2]
[398014825,1765290640704,-2721.19624046,0.00010588,2]
[398014875,1765290643043,-500.0,7.373e-05,2]
[398014877,1765290643053,-500.0,7.373e-05,2]
[398014879,1765290643062,-500.0,7.373e-05,2]
[398014881,1765290643071,-157.4682726,7.373e-05,2]
[398014883,1765290643082,-230.00840828,7.373e-05,2]
[398014885,1765290643092,-500.0,7.373e-05,2]
[398014887,1765290643101,-500.0,7.373e-05,2]
[398014889,1765290643110,-500.0,7.373e-05,2]
[398014890,1765290643119,-500.0,7.373e-05,2]
[398014892,1765290643128,-500.0,7.373e-05,2]
[398014894,1765290643138,-500.0,7.373e-05,2]
[398014896,1765290643148,-500.0,7.373e-05,2]
[398014898,1765290643157,-500.0,7.373e-05,2]
[398014900,1765290643167,-460.07257683,7.373e-05,2]
[398014953,1765290645851,-39.92742317,7.373e-05,2]
[398014954,1765290645861,-500.0,7.373e-05,2]
[398014955,1765290645871,-500.0,7.373e-05,2]
[398014956,1765290645880,-500.0,7.373e-05,2]
[398014957,1765290645900,-500.0,7.373e-05,2]
[398014958,1765290645910,-500.0,7.373e-05,2]
[398014959,1765290645921,-500.0,7.373e-05,2]
[398014960,1765290645932,-292.18030192,7.373e-05,2]
[398014961,1765290645943,-500.0,7.373e-05,2]
[398014962,1765290645952,-500.0,7.373e-05,2]
[398014963,1765290645962,-500.0,7.373e-05,2]
[398014964,1765290645972,-500.0,7.373e-05,2]
[398014965,1765290645983,-500.0,7.373e-05,2]
[398014966,1765290645993,-500.0,7.373e-05,2]
[398014967,1765290646002,-214.87073857,9.107e-05,2]
[398014968,1765290646011,-500.0,0.000102,2]
[398014969,1765290646021,-500.0,0.00010474,2]
[398014970,1765290646030,-214.87073857,0.00010534,2]
[398014971,1765290646040,-297.44665514,0.00010588,2]
[398014972,1765290646049,-374.03,0.000106,2]
[398014973,1765290646059,-333.9537392,0.00010606,2]
[398014974,1765290646072,-0.6362608,0.00010606,2]
[398014975,1765290646082,-553.64373807,0.00010622,2]
[398014976,1765290646091,-886.90217463,0.00010622,2]
[398014977,1765290646107,-271.52,0.00010622,2]
[398014979,1765291521500,323.46,6.5e-05,2]
[398014980,1765291535458,-316.75375189,6.6e-05,2]
[398014981,1765291548094,-6.70624811,6.6e-05,2]
[398014982,1765291548113,-323.46,6.7e-05,2]
[398014983,1765291548133,-323.46,6.8e-05,2]
[398014984,1765291548153,-546.50641493,6.814e-05,2]
[398014985,1765291579267,340.07,6.5e-05,2]
[398014986,1765291595399,-300.50039579,6.6e-05,2]
[398014987,1765291639735,310.39,6.5e-05,2]
[398014988,1765291675973,5000.0,6.523e-05,2]
[398014989,1765291698778,4689.62,6.523e-05,2]
[398014990,1765291700206,333.47,6.5e-05,2]
[398014991,1765291754892,9666.54,6.208e-05,2]
[398014992,1765291754914,6594.2412486,6.208e-05,2]
[398014993,1765291765108,310.85,6.5e-05,2]
[398014994,1765291804598,513.0,6.523e-05,2]
[398014995,1765291821601,333.02,6.5e-05,2]
[398015027,1765291831941,-310.38,6.523e-05,2]
[398015028,1765291831951,-333.02,6.6e-05,2]
[398015029,1765291831960,-303.24482676,6.65e-05,2]
[398015030,1765291831970,-333.02,6.7e-05,2]
[398015031,1765291831979,-333.02,6.8e-05,2]
[398015032,1765291831988,-333.02,6.8e-05,2]
[398015033,1765291831997,-333.02,6.9e-05,2]
[398015034,1765291832007,-333.02,7e-05,2]
[398015036,1765291832016,-150.0,7.024e-05,2]
[398015038,1765291832029,-333.02,7.1e-05,2]
[398015039,1765291832043,-283.527899,7.123e-05,2]
[398015040,1765291832053,-160.389,7.134e-05,2]
[398015041,1765291832064,-300.0,7.178e-05,2]
[398015042,1765291832074,-500.0,7.179e-05,2]
[398015043,1765291832084,-431.94185343,7.179e-05,2]
[398015044,1765291832093,-500.0,7.179e-05,2]
[398015045,1765291832102,-500.0,7.179e-05,2]
[398015046,1765291832112,-500.0,7.179e-05,2]
[398015047,1765291832122,-173.84189497,7.179e-05,2]
[398015048,1765291832131,-500.0,7.179e-05,2]
[398015049,1765291832140,-500.0,7.179e-05,2]
[398015050,1765291832149,-500.0,7.179e-05,2]
[398015051,1765291832158,-500.0,7.179e-05,2]
[398015052,1765291832168,-145743.86225459,7.18e-05,2]
[398015053,1765291832179,-421.34932773,7.18e-05,2]
[398015054,1765291832195,-500.0,7.18e-05,2]
[398015076,1765291838014,-5080.59648594,7.18e-05,2]
[398015078,1765291838026,-7488.17832045,7.18e-05,2]
[398015080,1765291838037,-3563.90632822,7.18e-05,2]
[398015082,1765291838050,-616.52065901,7.18e-05,2]
[398015084,1765291838063,-578.65067227,7.18e-05,2]
[398015087,1765291838075,-1513.73603526,7.18e-05,2]
[398015089,1765291838086,-2012.70208524,7.18e-05,2]
[398015091,1765291838099,-500.0,7.18e-05,2]
[398015204,1765291841584,-974.74968836,7.18e-05,2]
[398015211,1765291841644,-376.0,7.18e-05,2]
[398015213,1765291841656,-4411.04309886,7.18e-05,2]
[398015217,1765291841702,-1584.95453451,7.18e-05,2]
[398015231,1765291843203,-204347.17219752,7.18e-05,2]
[398015232,1765291843213,-333.02,7.2e-05,2]
[398015233,1765291843223,-37348.02123164,7.3e-05,2]
[398015234,1765291843232,-333.02,7.3e-05,2]
[398015235,1765291843241,-333.02,7.3e-05,2]
[398015236,1765291843251,-347.30356795,7.339e-05,2]
[398015237,1765291843260,-333.02,7.4e-05,2]
[398015238,1765291843270,-300.0,7.425e-05,2]
[398015239,1765291843279,-300.0,7.425e-05,2]
[398015240,1765291843289,-300.0,7.425e-05,2]
[398015241,1765291843298,-300.0,7.425e-05,2]
[398015242,1765291843308,-300.0,7.425e-05,2]
[398015243,1765291843318,-300.0,7.425e-05,2]
[398015245,1765291843327,-300.0,7.425e-05,2]
[398015246,1765291843336,-300.0,7.425e-05,2]
[398015247,1765291843346,-300.0,7.425e-05,2]
[398015249,1765291843356,-300.0,7.425e-05,2]
[398015250,1765291843365,-300.0,7.425e-05,2]
[398015252,1765291843374,-300.0,7.425e-05,2]
[398015254,1765291843383,-300.0,7.425e-05,2]
[398015256,1765291843393,-300.0,7.425e-05,2]
[398015258,1765291843402,-300.0,7.425e-05,2]
[398015259,1765291843411,-600.0,7.425e-05,2]
[398015260,1765291843421,-333.02,7.5e-05,2]
[398015261,1765291843430,-333.02,7.6e-05,2]
[398015262,1765291843440,-1178.00822151,7.648e-05,2]
[398015263,1765291843451,-281.54,7.663e-05,2]
[398015264,1765291843461,-333.02,7.7e-05,2]
[398015265,1765291843470,-333.02,7.7e-05,2]
[398015266,1765291843480,-1178.00822151,7.769e-05,2]
[398015267,1765291843490,-333.02,7.8e-05,2]
[398015268,1765291843499,-1178.00822151,7.89e-05,2]
[398015269,1765291843508,-420.0,7.896e-05,2]
[398015270,1765291843520,-333.02,7.9e-05,2]
[398015271,1765291843530,-333.02,8e-05,2]
[398015272,1765291843539,-1178.00822151,8.012e-05,2]